bitfinex/quotes_SOLUSD_20250621
["timestamp","ask_amount","ask_price","bid_price","bid_amount"]
[1750550243424,5.37661536,135.16,135.08,28.70156653]
[1750550243620,1.7803,135.2,135.11,26.0]
[1750550243845,28.70156653,135.18,135.13,28.70156653]
[1750550244027,28.70156653,135.17,135.11,26.0]
[1750550244233,1.7803,135.2,135.08,26.0]
[1750550244429,1.7803,135.2,135.11,28.70156653]
[1750550244643,7.17284401,135.2,135.12,7.40082889]
[1750550244851,28.70156653,135.13,135.12,7.40082889]
[1750550245423,28.70156653,135.13,135.1,7.40146892]
[1750550245627,28.70156653,135.11,135.1,7.40146892]
[1750550245878,6.85520747,135.19,135.1,54.6078467]
[1750550245879,5.39254401,135.16,135.1,54.6078467]
[1750550246049,11.08179209,135.26,135.1,54.6078467]
[1750550246050,5.40263599,135.25,135.13,26.0]
[1750550246351,5.40263599,135.24,135.16,28.70156653]
[1750550246537,5.40263599,135.23,135.17,25.89331952]
[1750550246740,28.70156653,135.21,135.17,25.89331952]
[1750550247255,28.70156653,135.24,135.17,25.89331952]
[1750550247472,28.70156653,135.19,135.17,25.89331952]
[1750550247761,28.70156653,135.18,135.15,7.39869171]
[1750550247926,5.40943178,135.21,135.15,7.39869171]
[1750550248128,5.40943178,135.2,135.15,7.39869171]
[1750550248327,5.40943178,135.21,135.15,25.89665693]
[1750550248528,10.0,135.3,135.15,25.89665693]
[1750550248529,6.85520747,135.27,135.22,26.0]
[1750550248751,7.2891,135.34,135.26,28.70156653]
[1750550248752,12.26148461,135.3,135.26,28.70156653]
[1750550248958,5.40540434,135.33,135.26,28.70156653]
[1750550249251,28.70156653,135.3,135.25,28.70156653]
[1750550249457,28.70156653,135.28,135.22,62.86052358]
[1750550249633,5.40540434,135.3,135.22,62.86052358]
[1750550249957,5.40540434,135.31,135.29,28.70156653]
[1750550250125,1.6167893,135.35,135.3,28.70156653]
[1750550250323,1.6167893,135.35,135.25,26.0]
[1750550250324,1.6167893,135.35,135.31,28.70156653]
[1750550250547,1.6167893,135.35,135.34,33.38879858]
[1750550250747,1.6167893,135.35,135.34,62.09036511]
[1750550250940,1.6167893,135.35,135.34,7.38879858]
[1750550251129,1.6167893,135.35,135.34,62.09036511]
[1750550251330,1.6167893,135.35,135.34,7.38879858]
[1750550251851,1.6167893,135.35,135.34,54.74001397]
[1750550252056,9.25409751,135.51,135.38,26.0]
[1750550252256,20.20242798,135.57,135.38,26.0]
[1750550252257,7.37620408,135.58,135.44,26.0]
[1750550252555,7.37620408,135.58,135.48,28.70156653]
[1750550252556,28.70156653,135.53,135.48,28.70156653]
[1750550252728,2.34636846,135.58,135.49,7.38061849]
[1750550252928,5.36363087,135.6,135.53,28.70156653]
[1750550253144,28.70156653,135.57,135.49,62.73525719]
[1750550253329,9.0034,135.61,135.49,7.38061849]
[1750550253644,28.70156653,135.57,135.52,28.70156653]
[1750550253849,9.0034,135.61,135.4,7.38552437]
[1750550253850,10.0,135.59,135.4,7.38552437]
[1750550254166,3.4342668,135.59,135.43,36.91737109]
[1750550254339,10.0,135.56,135.41,26.0]
[1750550254537,28.70156653,135.48,135.4,25.8493353]
[1750550254768,26.0,135.54,135.44,7.38334317]
[1750550255080,28.70156653,135.48,135.44,7.38334317]
[1750550255258,28.70156653,135.51,135.44,25.84170111]
[1750550255447,28.70156653,135.47,135.44,7.38334317]
[1750550255772,28.70156653,135.45,135.4,7.38552437]
[1750550256059,28.70156653,135.45,135.4,36.0870909]
[1750550256230,26.0,135.52,135.44,28.70156653]
[1750550256433,26.0,135.52,135.4,25.8493353]
[1750550256646,28.70156653,135.48,135.45,7.38279808]
[1750550256937,28.70156653,135.48,135.4,18.46381093]
[1750550256938,28.70156653,135.46,135.41,7.38497895]
[1750550257257,28.70156653,135.48,135.43,28.70156653]
[1750550257629,28.70156653,135.48,135.41,25.84742633]
[1750550257630,28.70156653,135.49,135.44,28.70156653]
[1750550257829,52.88,135.54,135.42,26.0]
[1750550258054,26.0,135.53,135.41,25.84742633]
[1750550258276,18.64964886,135.54,135.37,84.89311937]
[1750550258277,27.7029,135.47,135.38,7.38661545]
[1750550258554,28.70156653,135.4,135.38,7.38661545]
[1750550258740,80.5429,135.47,135.35,54.55919551]
[1750550258938,28.70156653,135.4,135.35,54.55919551]
[1750550259449,1.7029,135.47,135.35,51.85762898]
[1750550259758,1.7029,135.47,135.38,28.70156653]
[1750550259965,28.70156653,135.41,135.36,28.70156653]
[1750550260434,18.64964886,135.46,135.35,25.85762898]
[1750550260635,18.64964886,135.46,135.35,54.55919551]
[1750550260835,18.64964886,135.46,135.35,7.38825267]
[1750550260836,26.0,135.43,135.35,7.38825267]
[1750550261037,25.82673099,135.52,135.35,51.85888436]
[1750550261278,28.70156653,135.4,135.35,54.56045089]
[1750550261572,28.70156653,135.39,135.35,7.38825267]
[1750550262074,7.1619,135.45,135.36,28.70156653]
[1750550262236,28.70156653,135.41,135.36,28.70156653]
[1750550262432,28.70156653,135.4,135.35,36.0898192]
[1750550262637,28.70156653,135.38,135.33,28.70156653]
[1750550262933,28.70156653,135.38,135.32,25.86439067]
[1750550263134,28.70156653,135.38,135.34,28.70156653]
[1750550263335,1.7029,135.43,135.33,18.64964886]
[1750550263644,1.7029,135.43,135.39,28.70156653]
[1750550263850,30.40446653,135.43,135.35,26.0]
[1750550264069,30.40446653,135.43,135.32,81.46349267]
[1750550264070,28.70156653,135.38,135.32,25.86439067]
[1750550264370,26.0,135.42,135.32,7.38989062]
[1750550264677,1.7029,135.43,135.32,62.81407033]
[1750550264871,1.7029,135.43,135.36,26.0]
[1750550265165,1.7029,135.43,135.38,28.70156653]
[1750550265369,1.7029,135.43,135.36,26.0]
[1750550265534,28.70156653,135.48,135.42,28.70156653]
[1750550265898,1.7029,135.56,135.41,18.64964886]
[1750550266057,1.7029,135.56,135.41,26.0]
[1750550266239,28.70156653,135.47,135.43,28.70156653]
[1750550266553,18.64964886,135.53,135.36,44.64964886]
[1750550266741,18.64964886,135.53,135.42,7.38443361]
[1750550267074,28.70156653,135.45,135.42,7.38443361]
[1750550267441,28.70156653,135.43,135.42,7.38443361]
[1750550267636,26.0,135.49,135.42,7.38443361]
[1750550268042,26.0,135.5,135.42,25.84551764]
[1750550268242,28.70156653,135.45,135.42,25.84551764]
[1750550268461,26.0,135.5,135.42,25.84551764]
[1750550268980,28.70156653,135.45,135.37,62.79086945]
[1750550269277,32.13583333,135.45,135.37,62.79086945]
[1750550269472,28.70156653,135.44,135.37,62.79086945]
[1750550269655,28.70156653,135.44,135.39,28.70156653]
[1750550269859,28.70156653,135.42,135.37,62.79086945]
[1750550270056,3.4342668,135.45,135.37,62.79086945]
[1750550270273,3.4342668,135.45,135.4,28.70156653]
[1750550270458,32.13583333,135.45,135.4,28.70156653]
[1750550270636,3.4342668,135.45,135.41,26.0]
[1750550270843,3.4342668,135.45,135.44,7.38334317]
[1750550271146,3.4342668,135.45,135.44,62.0849097]
[1750550271345,3.4342668,135.45,135.44,7.38334317]
[1750550271541,32.13583333,135.45,135.42,7.38443361]
[1750550271771,28.70156653,135.44,135.42,7.38443361]
[1750550271947,3.4342668,135.45,135.42,7.38443361]
[1750550272185,28.70156653,135.44,135.42,7.38443361]
[1750550272766,32.82619701,135.51,135.4,7.38552437]
[1750550273002,14.17654815,135.51,135.38,7.38661545]
[1750550273204,14.17654815,135.51,135.39,10.0]
[1750550273403,14.17654815,135.51,135.4,10.0]
[1750550273970,47.88,135.58,135.39,28.70156653]
[1750550273971,54.9554,135.58,135.49,28.70156653]
[1750550274294,54.9554,135.58,135.52,10.0]
[1750550274295,28.70156653,135.58,135.52,10.0]
[1750550274489,28.70156653,135.54,135.49,10.0]
[1750550274796,44.64964886,135.58,135.47,7.38170812]
[1750550275095,18.64964886,135.57,135.47,7.38170812]
[1750550275394,28.70156653,135.51,135.47,7.38170812]
[1750550275576,44.64964886,135.57,135.47,7.38170812]
[1750550275766,28.70156653,135.51,135.47,7.38170812]
[1750550275969,44.64964886,135.57,135.47,7.38170812]
[1750550276193,44.64964886,135.57,135.46,7.38216606]
[1750550276497,15.62115273,135.61,135.48,10.0]
[1750550276879,15.62115273,135.61,135.46,25.83779871]
[1750550276880,28.70156653,135.55,135.51,7.37952918]
[1750550277395,26.0,135.57,135.46,10.0]
[1750550277584,28.70156653,135.54,135.46,7.38225306]
[1750550277893,28.70156653,135.51,135.46,36.08381959]
[1750550278197,28.70156653,135.52,135.47,28.70156653]
[1750550278384,28.70156653,135.52,135.46,7.38225306]
[1750550278581,26.0,135.54,135.46,36.08381959]
[1750550278889,70.92680865,135.61,135.52,7.37856927]
[1750550278890,28.70156653,135.58,135.52,7.37856927]
[1750550279100,54.70156653,135.58,135.53,28.70156653]
[1750550279284,28.70156653,135.55,135.5,7.37956483]
[1750550279595,26.0,135.58,135.51,28.70156653]
[1750550279800,28.70156653,135.57,135.52,28.70156653]
[1750550280007,28.70156653,135.58,135.52,28.70156653]
[1750550280300,8.24693925,135.61,135.57,28.70156653]
[1750550280488,36.94850578,135.61,135.53,10.0]
[1750550280800,13.58436135,135.61,135.5,7.37956483]
[1750550280980,28.70156653,135.57,135.5,7.37956483]
[1750550281176,26.0,135.53,135.43,7.38388835]
[1750550281397,26.0,135.53,135.45,28.70156653]
[1750550281595,26.0,135.53,135.44,10.0]
[1750550281799,28.70156653,135.54,135.46,10.0]
[1750550281985,18.64964886,135.57,135.43,35.84360923]
[1750550282300,26.0,135.54,135.44,28.70156653]
[1750550282499,26.0,135.54,135.45,38.70156653]
[1750550282703,26.0,135.54,135.43,17.38388835]
[1750550282906,5.3374221,135.6,135.49,28.70156653]
[1750550283209,5.3374221,135.6,135.48,10.0]
[1750550283210,28.70156653,135.5,135.43,35.84360923]
[1750550283506,54.70156653,135.5,135.43,7.38388835]
[1750550283682,28.70156653,135.44,135.37,7.38716111]
[1750550283881,44.64964886,135.46,135.4,28.70156653]
[1750550284097,28.70156653,135.44,135.39,28.70156653]
[1750550284603,5.37208165,135.45,135.39,10.0]
[1750550284806,28.70156653,135.5,135.44,28.70156653]
[1750550285107,26.0,135.47,135.43,28.70156653]
[1750550285415,28.70156653,135.45,135.37,7.38716111]
[1750550285716,26.0,135.42,135.34,7.38879858]
[1750550285931,26.0,135.42,135.31,7.39043677]
[1750550285932,26.0,135.4,135.31,7.39043677]
[1750550286222,28.70156653,135.38,135.33,28.70156653]
[1750550286395,34.07364818,135.38,135.33,28.70156653]
[1750550286592,5.37208165,135.39,135.31,7.39043677]
[1750550286786,34.07364818,135.39,135.35,28.70156653]
[1750550286993,5.37208165,135.39,135.38,28.70156653]
[1750550287240,5.37208165,135.39,135.34,10.0]
[1750550287241,5.40631766,135.42,135.34,10.0]
[1750550287445,5.40631766,135.41,135.39,28.70156653]
[1750550287737,5.40631766,135.4,135.35,10.0]
[1750550288044,5.40631766,135.42,135.39,28.70156653]
[1750550288340,5.40631766,135.41,135.37,10.0]
[1750550288547,5.42294042,135.47,135.38,10.0]
[1750550288706,5.42294042,135.46,135.38,10.0]
[1750550288908,5.42294042,135.45,135.4,10.0]
[1750550289134,5.42294042,135.44,135.39,7.38606987]
[1750550289446,5.42294042,135.43,135.41,28.70156653]
[1750550289734,5.42294042,135.43,135.39,7.38606987]
[1750550289735,5.42294042,135.42,135.4,28.70156653]
[1750550289953,28.70156653,135.46,135.41,28.70156653]
[1750550290141,5.43164636,135.45,135.41,28.70156653]
[1750550290348,5.43164636,135.44,135.41,28.70156653]
[1750550290509,73.35121539,135.49,135.43,28.70156653]
[1750550290716,28.70156653,135.45,135.37,7.38713628]
[1750550290912,5.44415198,135.44,135.4,28.70156653]
[1750550291127,5.44415198,135.44,135.38,7.38661545]
[1750550291128,5.44415198,135.43,135.38,17.38661545]
[1750550291310,5.44415198,135.42,135.38,17.38661545]
[1750550291506,7.38061849,135.49,135.41,28.70156653]
[1750550291707,5.45297235,135.48,135.42,28.70156653]
[1750550291912,28.70156653,135.45,135.4,28.70156653]
[1750550292135,5.45297235,135.44,135.4,28.70156653]
[1750550292334,5.45297235,135.43,135.38,10.0]
[1750550292520,5.46292537,135.42,135.41,28.70156653]
[1750550293017,40.79838593,135.42,135.33,10.0]
[1750550293223,6.63389403,135.38,135.33,10.0]
[1750550293541,5.46292537,135.37,135.35,28.70156653]
[1750550293832,5.46292537,135.36,135.35,28.70156653]
[1750550294412,5.46292537,135.36,135.34,7.38857772]
[1750550294619,5.46292537,135.35,135.34,7.38857772]
[1750550294819,5.46292537,135.35,135.34,36.09014425]
[1750550295439,5.46292537,135.35,135.34,28.70156653]
[1750550295749,5.46292537,135.35,135.29,7.3910278]
[1750550295930,28.70156653,135.36,135.29,7.3910278]
[1750550295931,5.46292537,135.34,135.31,28.70156653]
[1750550296244,5.46292537,135.33,135.31,28.70156653]
[1750550296429,5.46292537,135.32,135.24,10.0]
[1750550296627,5.46292537,135.31,135.29,28.70156653]
[1750550296824,6.63389403,135.34,135.3,28.70156653]
[1750550297133,5.48504576,135.33,135.32,28.70156653]
[1750550297328,5.48504576,135.33,135.31,10.0]
[1750550297536,5.48504576,135.32,135.27,10.0]
[1750550297730,5.48504576,135.31,135.26,10.0]
[1750550297914,42.72318491,135.36,135.3,28.70156653]
[1750550298118,42.72318491,135.36,135.26,10.0]
[1750550298119,5.48190317,135.35,135.31,28.70156653]
[1750550298414,5.48190317,135.34,135.32,28.70156653]
[1750550298611,5.48190317,135.33,135.32,28.70156653]
[1750550299115,5.48190317,135.33,135.3,7.3908589]
[1750550299318,5.48190317,135.32,135.31,10.0]
[1750550299543,5.4797701,135.32,135.31,28.70156653]
[1750550299954,80.73788385,135.38,135.31,28.70156653]
[1750550300139,5.47928639,135.37,135.36,28.70156653]
[1750550300319,5.47928639,135.37,135.32,10.0]
[1750550300520,5.47928639,135.36,135.33,28.70156653]
[1750550300855,5.47928639,135.35,135.31,10.0]
[1750550301022,5.47928639,135.34,135.31,10.0]
[1750550301224,5.47928639,135.39,135.31,10.0]
[1750550301554,5.47928639,135.38,135.31,10.0]
[1750550301716,5.47928639,135.37,135.32,10.0]
[1750550301921,33.38559345,135.4,135.32,10.0]
[1750550301922,5.47928639,135.36,135.35,28.70156653]
[1750550302148,5.47928639,135.36,135.32,10.0]
[1750550302442,5.47928639,135.35,135.32,10.0]
[1750550302644,5.47510367,135.39,135.32,17.38961264]
[1750550302855,5.47510367,135.38,135.32,35.86433921]
[1750550303147,5.47510367,135.37,135.32,7.38961264]
[1750550303353,5.47510367,135.39,135.32,7.38961264]
[1750550303535,5.47510367,135.38,135.34,25.56937215]
[1750550303844,5.47510367,135.37,135.36,25.56937215]
[1750550304020,36.89628879,135.52,135.36,35.56937215]
[1750550304021,5.47510367,135.4,135.36,35.56937215]
[1750550304219,25.56937215,135.43,135.38,25.56937215]
[1750550304419,25.56937215,135.43,135.36,25.56937215]
[1750550304420,25.56937215,135.41,135.36,25.56937215]
[1750550304645,31.04447582,135.41,135.36,32.95705743]
[1750550304945,25.56937215,135.39,135.35,25.56937215]
[1750550305251,24.12475253,135.43,135.35,25.56937215]
[1750550305462,25.56937215,135.4,135.35,25.56937215]
[1750550305741,5.47510367,135.43,135.39,35.56937215]
[1750550305974,25.56937215,135.43,135.37,10.0]
[1750550306147,25.56937215,135.42,135.37,25.56937215]
[1750550306447,26.0,135.43,135.39,25.56937215]
[1750550306650,8.6985,135.48,135.42,25.56937215]
[1750550306855,6.8745,135.53,135.47,25.56937215]
[1750550307025,6.8745,135.53,135.44,10.0]
[1750550307026,32.44387215,135.53,135.44,10.0]
[1750550307222,32.44387215,135.53,135.41,25.56937215]
[1750550307223,25.56937215,135.5,135.45,25.56937215]
[1750550307446,25.56937215,135.46,135.39,10.0]
[1750550307766,25.56937215,135.43,135.37,25.85446205]
[1750550307917,25.56937215,135.42,135.37,7.38716111]
[1750550308118,25.56937215,135.43,135.38,25.56937215]
[1750550308350,25.56937215,135.43,135.37,7.38716111]
[1750550308526,25.56937215,135.43,135.39,7.38606987]
[1750550309153,25.56937215,135.45,135.4,25.56937215]
[1750550309757,18.64964886,135.52,135.44,25.56937215]
[1750550310069,3.84727599,135.56,135.51,25.56937215]
[1750550310368,58.87417215,135.58,135.53,25.56937215]
[1750550310671,25.56937215,135.54,135.47,10.0]
[1750550310875,25.56937215,135.54,135.49,25.56937215]
[1750550311039,25.56937215,135.53,135.48,25.56937215]
[1750550311240,18.64964886,135.56,135.49,25.56937215]
[1750550311542,25.56937215,135.56,135.51,25.56937215]
[1750550311865,51.56937215,135.56,135.51,25.56937215]
[1750550312245,7.3048,135.58,135.51,25.56937215]
[1750550312573,44.64964886,135.57,135.49,25.56937215]
[1750550312785,25.56937215,135.5,135.43,10.0]
[1750550312944,44.64964886,135.51,135.41,7.38497895]
[1750550313145,44.64964886,135.51,135.42,25.56937215]
[1750550313146,25.56937215,135.47,135.42,25.56937215]
[1750550313363,51.95746185,135.61,135.47,10.0]
[1750550313566,25.56937215,135.55,135.5,25.56937215]
[1750550313876,8.24693925,135.61,135.52,25.56937215]
[1750550314086,26.0,135.56,135.52,25.56937215]
[1750550314238,25.56937215,135.59,135.54,25.56937215]
[1750550314444,8.24693925,135.61,135.53,10.0]
[1750550314642,8.24693925,135.61,135.59,25.56937215]
[1750550314865,6.51621269,135.62,135.59,25.56937215]
[1750550315068,6.51621269,135.62,135.6,25.56937215]
[1750550315274,6.51621269,135.62,135.61,35.56937215]
[1750550315776,6.51621269,135.62,135.61,10.0]
[1750550315991,6.51621269,135.62,135.58,10.0]
[1750550316140,6.51621269,135.62,135.6,25.56937215]
[1750550316341,6.51621269,135.62,135.58,10.0]
[1750550316644,6.51621269,135.62,135.58,25.56937215]
[1750550316841,25.56937215,135.6,135.54,10.0]
[1750550317047,26.0,135.57,135.5,7.3800738]
[1750550317283,13.88989808,135.62,135.55,25.56937215]
[1750550317485,13.88989808,135.62,135.5,7.3800738]
[1750550317486,25.56937215,135.59,135.54,25.56937215]
[1750550317687,6.51621269,135.62,135.58,25.56937215]
[1750550317986,44.64964886,135.61,135.54,10.0]
[1750550318158,6.51621269,135.62,135.59,25.56937215]
[1750550318354,6.51621269,135.62,135.58,25.56937215]
[1750550318980,6.51621269,135.62,135.57,17.37608075]
[1750550319174,6.51621269,135.62,135.58,25.56937215]
[1750550319376,6.51621269,135.62,135.59,25.56937215]
[1750550319574,6.51621269,135.62,135.58,10.0]
[1750550319755,6.51621269,135.62,135.58,25.56937215]
[1750550320361,6.51621269,135.62,135.59,25.56937215]
[1750550320581,6.51621269,135.62,135.58,25.56937215]
[1750550321286,6.51621269,135.62,135.59,25.56937215]
[1750550321507,6.51621269,135.62,135.61,10.0]
[1750550321788,6.51621269,135.62,135.61,35.56937215]
[1750550322891,6.51621269,135.62,135.61,42.9434596]
[1750550323395,6.51621269,135.62,135.61,17.37408745]
[1750550323562,6.51621269,135.62,135.61,42.9434596]
[1750550324684,6.51621269,135.62,135.61,17.37408745]
[1750550324888,6.51621269,135.62,135.61,42.9434596]
[1750550325188,3.84234026,135.74,135.69,10.0]
[1750550325381,32.93430894,135.78,135.73,25.56937215]
[1750550325577,25.56937215,135.77,135.72,25.56937215]
[1750550325785,51.56937215,135.77,135.72,25.56937215]
[1750550326077,25.56937215,135.75,135.7,25.56937215]
[1750550326281,25.56937215,135.73,135.68,25.56937215]
[1750550326584,25.56937215,135.74,135.69,25.56937215]
[1750550326789,26.0,135.75,135.7,25.56937215]
[1750550326996,18.64964886,135.78,135.71,25.56937215]
[1750550327295,25.56937215,135.75,135.7,35.56937215]
[1750550327463,25.56937215,135.76,135.71,35.56937215]
[1750550327662,25.56937215,135.75,135.7,35.56937215]
[1750550327881,25.56937215,135.73,135.68,10.0]
[1750550328090,25.56937215,135.73,135.68,35.56937215]
[1750550328269,25.56937215,135.72,135.67,25.56937215]
[1750550328512,25.56937215,135.73,135.68,25.56937215]
[1750550328675,25.56937215,135.73,135.68,35.56937215]
[1750550329161,25.56937215,135.73,135.68,10.0]
[1750550329488,18.41213728,135.78,135.7,25.56937215]
[1750550329665,25.56937215,135.74,135.7,10.0]
[1750550329871,6.73832177,135.82,135.73,10.0]
[1750550329872,18.64964886,135.82,135.73,10.0]
[1750550330088,7.3626859,135.82,135.75,25.56937215]
[1750550330262,18.67357359,135.84,135.77,10.0]
[1750550330263,25.56937215,135.81,135.77,10.0]
[1750550330465,25.56937215,135.78,135.71,10.0]
[1750550330687,25.56937215,135.77,135.72,35.56937215]
[1750550330887,25.56937215,135.78,135.73,10.0]
[1750550331074,25.56937215,135.77,135.73,10.0]
[1750550331271,25.56937215,135.77,135.72,10.0]
[1750550331489,25.56937215,135.77,135.73,10.0]
[1750550331687,7.36294865,135.82,135.74,25.56937215]
[1750550331887,25.56937215,135.8,135.75,35.56937215]
[1750550332199,50.01152483,135.81,135.74,10.0]
[1750550332363,25.56937215,135.78,135.74,10.0]
[1750550332585,25.56937215,135.79,135.75,10.0]
[1750550332797,7.36294865,135.82,135.75,35.56937215]
[1750550332972,25.56937215,135.8,135.75,35.56937215]
[1750550333169,25.56937215,135.78,135.73,10.0]
[1750550333368,7.36387093,135.8,135.73,32.93666511]
[1750550333586,25.56937215,135.78,135.73,42.93666511]
[1750550333870,25.56937215,135.78,135.73,32.93666511]
[1750550334378,7.36387093,135.8,135.73,10.0]
[1750550334572,25.56937215,135.74,135.69,10.0]
[1750550334767,25.56937215,135.72,135.67,17.37033546]
[1750550334978,26.0,135.73,135.66,42.94051951]
[1750550335192,26.0,135.73,135.54,36.88788314]
[1750550335193,7.36832614,135.72,135.63,17.37280214]
[1750550335363,25.56937215,135.67,135.63,7.37280214]
[1750550335696,25.56937215,135.65,135.62,10.0]
[1750550335887,25.56937215,135.64,135.62,10.0]
[1750550336082,18.64964886,135.69,135.58,10.0]
[1750550336083,26.0,135.66,135.58,10.0]
[1750550336270,26.0,135.66,135.59,35.56937215]
[1750550336470,25.56937215,135.65,135.61,10.0]
[1750550336777,25.56937215,135.62,135.59,17.37511117]
[1750550337092,25.56937215,135.62,135.6,10.0]
[1750550337292,7.37191301,135.65,135.6,10.0]
[1750550337497,7.37191301,135.65,135.57,17.37622124]
[1750550337665,7.37191301,135.65,135.41,25.56937215]
[1750550337666,70.21902101,135.63,135.55,10.0]
[1750550337870,7.37191301,135.65,135.58,10.0]
[1750550338172,33.37191301,135.65,135.58,10.0]
[1750550338365,36.84055408,135.72,135.61,25.56937215]
[1750550338366,25.56937215,135.66,135.61,25.56937215]
[1750550338570,25.56937215,135.65,135.61,10.0]
[1750550338774,25.56937215,135.62,135.59,10.0]
[1750550338991,25.56937215,135.6,135.56,10.0]
[1750550339188,44.64964886,135.64,135.49,13.2923]
[1750550339189,26.02319258,135.62,135.55,10.0]
[1750550339366,26.02319258,135.62,135.53,10.0]
[1750550339572,26.02319258,135.62,135.55,10.0]
[1750550339768,25.56937215,135.58,135.56,10.0]
[1750550339972,26.02319258,135.62,135.56,10.0]
[1750550340300,25.56937215,135.57,135.53,10.0]
[1750550340601,25.56937215,135.54,135.49,10.0]
[1750550340780,25.56937215,135.5,135.47,17.38123586]
[1750550340976,12.0303,135.64,135.56,17.37631629]
[1750550341292,18.64964886,135.68,135.59,10.0]
[1750550341469,18.64964886,135.68,135.55,10.0]
[1750550341470,26.0,135.65,135.55,10.0]
[1750550341666,25.56937215,135.57,135.55,17.37728234]
[1750550341890,26.0,135.61,135.56,10.0]
[1750550342081,25.56937215,135.57,135.53,17.37800279]
[1750550342286,26.0,135.61,135.55,10.0]
[1750550342287,25.56937215,135.58,135.55,10.0]
[1750550342484,25.56937215,135.58,135.56,10.0]
[1750550342688,6.79226683,135.7,135.57,35.56937215]
[1750550343004,25.56937215,135.7,135.66,10.0]
[1750550343205,25.56937215,135.69,135.66,10.0]
[1750550343378,30.93978592,135.7,135.66,17.37127959]
[1750550343687,25.56937215,135.67,135.63,10.0]
[1750550343867,20.95869156,135.72,135.6,10.0]
[1750550343868,25.56937215,135.64,135.6,10.0]
[1750550344072,25.56937215,135.62,135.6,10.0]
[1750550344267,25.56937215,135.61,135.6,10.0]
[1750550344674,25.56937215,135.61,135.58,10.0]
[1750550344879,5.38024983,135.64,135.55,17.37695286]
[1750550345195,7.37311532,135.63,135.57,10.0]
[1750550345402,25.56937215,135.59,135.58,10.0]
[1750550345696,25.56937215,135.59,135.57,10.0]
[1750550345896,5.38024983,135.62,135.55,10.0]
[1750550346074,25.56937215,135.58,135.55,10.0]
[1750550346379,25.56937215,135.57,135.56,10.0]
[1750550346578,31.38024983,135.62,135.56,10.0]
[1750550346779,26.0,135.62,135.56,10.0]
[1750550347002,25.56937215,135.58,135.56,10.0]
[1750550347412,10.45439229,135.65,135.59,10.0]
[1750550347614,25.56937215,135.62,135.59,10.0]
[1750550348005,25.56937215,135.61,135.59,10.0]
[1750550348403,25.56937215,135.61,135.58,10.0]
[1750550348603,25.56937215,135.59,135.57,10.0]
[1750550348806,25.56937215,135.58,135.53,10.0]
[1750550349015,25.56937215,135.54,135.52,10.0]
[1750550349207,25.56937215,135.53,135.52,10.0]
[1750550349404,25.56937215,135.53,135.48,10.0]
[1750550349609,25.56937215,135.49,135.46,10.0]
[1750550349920,25.56937215,135.48,135.44,17.38285797]
[1750550350119,18.64964886,135.52,135.39,12.5254]
[1750550350120,26.0,135.5,135.43,10.0]
[1750550350324,25.56937215,135.46,135.45,10.0]
[1750550350510,25.56937215,135.47,135.43,7.38387049]
[1750550350710,26.0,135.49,135.45,10.0]
[1750550350933,25.56937215,135.46,135.42,17.38435308]
[1750550351097,25.56937215,135.46,135.45,10.0]
[1750550351294,25.56937215,135.48,135.46,10.0]
[1750550351522,25.56937215,135.55,135.51,10.0]
[1750550351835,25.56937215,135.56,135.52,10.0]
[1750550352029,25.56937215,135.55,135.52,10.0]
[1750550353130,25.56937215,135.55,135.53,10.0]
[1750550353716,25.56937215,135.55,135.52,10.0]
[1750550354324,25.56937215,135.55,135.53,10.0]
[1750550354525,25.56937215,135.56,135.53,10.0]
[1750550355414,25.56937215,135.55,135.53,10.0]
[1750550356220,20.60130551,135.64,135.56,10.0]
[1750550356516,20.60130551,135.64,135.57,10.0]
[1750550356517,25.56937215,135.6,135.57,10.0]
[1750550356716,25.56937215,135.58,135.55,10.0]
[1750550356917,25.56937215,135.56,135.55,10.0]
[1750550357230,44.64964886,135.59,135.53,17.37817426]
[1750550357437,25.56937215,135.6,135.56,10.0]
[1750550357633,18.64964886,135.63,135.53,7.37817426]
[1750550357634,25.56937215,135.63,135.59,10.0]
[1750550357930,25.56937215,135.66,135.62,10.0]
[1750550358230,25.56937215,135.67,135.64,10.0]
[1750550358403,25.56937215,135.65,135.64,10.0]
[1750550359120,7.36982715,135.69,135.62,10.0]
[1750550359335,7.36982715,135.69,135.6,25.56937215]
[1750550359336,34.58774037,135.65,135.63,10.0]
[1750550359507,9.01836822,135.65,135.63,10.0]
[1750550359709,5.43997311,135.64,135.63,10.0]
[1750550360222,25.56937215,135.66,135.63,10.0]